Cogmind - Beta 16 @@@ ROGUE MODE // 2025.12.11 @ 07:44:24 Player: Red Box Result: Destroyed by 9U-OS8(R) with Subdweller Laser Performance ------------- Evolutions (0) 0 Regions Visited (3) 600 Robots Destroyed (31) 155 Value Destroyed (814) 814 Prototype IDs (16) 320 Alien Tech Used (0) 0 Bonus (25) 25 TOTAL SCORE: 1914 Bonus ------- Follower Combat Kills 25 Cogmind --------- Core Integrity 0/250 Matter 279/300 Energy 37/100 System Corruption 0% Temperature Cool (5) Movement Rolling (125) Ox3 Location -10/Subcaves Parts ------- > --- POWER (1) -------- (None) > --- PROPULSION (2) --- Light Treads Wheel > --- UTILITY (2) ------ Large Storage Unit Hardlight Generator > --- WEAPON (2) ------- Advanced Beam Cannon Rocket Launcher > --- INVENTORY (15) --- Light Treads Cryofiber Web Improved Heat Sink Disposable Heat Sink High-capacity Matter Pod (200) Pulse Rifle Advanced Beam Cannon Advanced Beam Cannon Advanced Beam Cannon Powered Cannon High-powered Shotgun Subdweller Shrapnel Launcher Makeshift Axe Peak State ------------ > --- POWER ------------ Subdweller Power Source > --- PROPULSION ------- Light Treads Wheel > --- UTILITY ---------- Large Storage Unit Improved Terrain Scanner > --- WEAPON ----------- Advanced Beam Cannon Advanced Beam Cannon > --- INVENTORY -------- Light Treads Cryofiber Web Improved Heat Sink Disposable Heat Sink High-capacity Matter Pod Hardlight Generator Pulse Rifle Advanced Beam Cannon Advanced Beam Cannon Powered Cannon High-powered Shotgun Rocket Launcher Subdweller Shrapnel Launcher Makeshift Axe [Rating: 18] Favorites ----------- Power Ion Engine Engine Ion Engine Propulsion Light Treads Treads Light Treads Leg Aluminum Leg Wheel Wheel Utility Large Storage Unit Device Improved Terrain Scanner Storage Large Storage Unit Protection Core Shielding Weapon Advanced Beam Cannon Energy Cannon Advanced Beam Cannon Ballistic Gun Light Assault Rifle Ballistic Cannon Light Cannon Launcher Rocket Launcher Special Weapon Mining Laser Build | -11 -10 -10 -10 ------- Run | Yrd Mat Min Sub Slots Evolved . | . . . . Power . | . . . . Propulsion . | . . . . Utility . | . . . . Weapon . | . . . . Parts Attached 29 | 7 14 5 3 Power 5 | 1 2 1 1 Engine 5 | 1 2 1 1 Core . | . . . . Reactor . | . . . . Propulsion 9 | 2 5 2 . Treads 3 | . 2 1 . Leg 3 | 2 1 . . Wheel 3 | . 2 1 . Hover . | . . . . Flight . | . . . . Utility 6 | 2 3 . 1 Device 3 | 1 1 . 1 Storage 2 | 1 1 . . Processor . | . . . . Hackware . | . . . . Protection 1 | . 1 . . Artifact . | . . . . Weapon 9 | 2 4 2 1 Energy Gun . | . . . . Energy Cannon 4 | . 2 2 . Ballistic Gun 2 | 2 . . . Ballistic Cannon 1 | . 1 . . Launcher 1 | . . . 1 Special Weapon 1 | . 1 . . Impact Weapon . | . . . . Slashing Weapon . | . . . . Piercing Weapon . | . . . . Special Melee Weapon . | . . . . Unidentified Prototypes 1 | . 1 . . Parts Lost 8 | . 1 4 3 Power 3 | . . 1 2 Propulsion 3 | . 1 2 . Utility 1 | . . . 1 Weapon 1 | . . 1 . Highest Loss Streak 3 | . 1 3 1 To Critical Strikes . | . . . . Average Backups 13 | 5 12 14 14 Power . | . 1 . . Propulsion 2 | 3 3 1 1 Utility 5 | . 3 6 6 Weapon 5 | 1 4 5 7 Tool/Special . | . . . . Unused Backups 16 | . 2 1 13 Power . | . . . . Propulsion . | . . . . Utility 6 | . . . 6 Weapon 10 | . 2 1 7 Tool/Special . | . . . . Average Slot Usage (%) 96 | . 99 99 90 Engine 10 | . 13 13 5 Treads 12 | . 9 13 14 Leg 4 | . 11 . . Wheel 11 | . 6 14 14 Device 9 | . 11 . 13 Storage 14 | . 14 14 14 Protection 4 | . 2 14 . Energy Cannon 17 | . 5 23 26 Ballistic Gun 4 | . 11 . . Ballistic Cannon 4 | . 8 4 . Peak Build Rating 18 | 9 13 14 18 Average Rating 12 | 5 9 11 15 On Entrance 8 | . 9 9 14 Avg Prop Armor Cover (%) 12 | . 10 11 13 Naked Turns . | . . . . Heaviest Build 38 | 12 32 34 38 Greatest Support 20 | 20 20 20 10 Greatest Overweight (x) 3 | 1 3 3 3 Average Overweight (x) 2 | . 1 2 2 Largest Inventory Capacity 15 | 8 15 15 15 Average Capacity 14 | 7 14 15 15 Most Carried 15 | 7 15 15 15 Average Carried 13 | 5 12 14 14 Final Capacity 15 | 8 15 15 15 Final Carried 15 | 7 15 15 14 Class Distribution -------------------- 100% | Mutant Dominant Class ---------------- Mutant | -10/Materials Mutant | -10/Mines Mutant | -10/Subcaves Resources | -11 -10 -10 -10 ----------- Run | Yrd Mat Min Sub Matter Collected 1123 | 286 538 142 157 Remotely . | . . . . Salvage Created 1077 | 85 442 152 398 Parts 64 | 7 25 10 22 Haulers Intercepted 1 | . 1 . . Recyclers Shooed . | . . . . Parts Field Recycled . | . . . . Retrieved Matter . | . . . . Parts Self-Destructed 13 | . . . 13 Prevented . | . . . . Parts Restored . | . . . . Kills | -11 -10 -10 -10 ------- Run | Yrd Mat Min Sub Combat Hostiles Destroyed 24 | . 10 6 8 Guns 5 | . 5 . . Cannons 16 | . 5 6 5 AOE 2 | . . . 2 Classes Destroyed 9 | 2 4 1 2 Tunneler 2 | 1 1 . . Hauler 1 | . 1 . . Recycler 2 | 1 . 1 . Watcher 2 | . 2 . . Swarmer 7 | . 3 3 1 Grunt 8 | . 7 1 . Demolisher 2 | . . 2 . Artisan 1 | . . . 1 Subdweller 7 | . . . 7 Best Kill Streak 4 | 2 4 3 1 Combat Bots Only 3 | . 3 3 1 Max Kills in Single Turn 1 | 1 1 1 1 Gunslinging . | . . . . Exploded 1 | . . . 1 Melee . | . . . . Uniques/NPCs Destroyed . | . . . . Combat | -11 -10 -10 -10 -------- Run | Yrd Mat Min Sub Hostile Shots Fired 133 | . 60 44 29 Missed 35 | . 16 10 9 Hits 98 | . 44 34 20 Melee 3 | . . 3 . Projectile 95 | . 44 31 20 AOE 6 | . . 5 1 Critical Strikes 1 | . . . 1 Damage Taken 1517 | . 435 545 537 Core 260 | . 39 46 175 Absorbed by Shields 12 | . . . 12 Redirected to Shielding 12 | . . 8 4 Regen/Repaired (Parts) 85 | . 85 . . Core Remaining (%) 100 | 100 . . . Volleys Fired 116 | 4 35 25 52 Largest 2 | 2 2 2 2 Hottest 136 | 40 100 90 136 Shots Fired 221 | 8 66 49 98 Gun 50 | 8 42 . . Cannon 159 | . 20 49 90 Launcher 8 | . . . 8 Special 4 | . 4 . . Kinetic 84 | 8 52 24 . Thermal 129 | . 14 25 90 Explosive 8 | . . . 8 Electromagnetic . | . . . . Robot Hit Streak 21 | 3 10 4 21 Robot Miss Streak 3 | 1 2 3 1 Penetration Max . | . . . . Secondary Targets . | . . . . Shots Hit Robots 118 | 6 40 31 41 Core Hits 45 | 3 18 9 15 Critical Kills 1 | . . . 1 Critical Parts Destroyed . | . . . . Critical Strikes 2 | . . 1 1 Meltdown 1 | . . . 1 Blast 1 | . . 1 . Melee Attacks . | . . . . Impact . | . . . . Slashing . | . . . . Piercing . | . . . . Sneak Attacks . | . . . . Combat Hostiles . | . . . . Follow-up Attacks . | . . . . Damage Inflicted 2230 | 62 498 588 1082 Guns 378 | 62 316 . . Cannons 1574 | . 182 588 804 Explosions 278 | . . . 278 Melee . | . . . . Ramming . | . . . . Kinetic 714 | 62 391 261 . Thermal 1238 | . 107 327 804 Explosive 278 | . . . 278 Electromagnetic . | . . . . Impact . | . . . . Slashing . | . . . . Piercing . | . . . . Highest Corruption . | . . . . Average Corruption . | . . . . Corruption Purged . | . . . . Corruption Blocked . | . . . . Overload Shots . | . . . . Overflow Damage . | . . . . Projectiles . | . . . . Explosions . | . . . . Melee . | . . . . Knockbacks 4 | . . 4 . Impact . | . . . . Kinetic 4 | . . 4 . Secondary . | . . . . Self-Inflicted Damage 36 | . . . 36 Shots 1 | . . . 1 Rammed 1 | . 1 . . Targets Rammed 1 | . 1 . . Kicked . | . . . . Crushed . | . . . . Highest Temperature 186 | . 102 186 90 Average Temperature 48 | . 26 75 31 Received Heat Transfer 287 | . 108 66 113 Siege Activations . | . . . . Martial Activations . | . . . . Shielding Activations . | . . . . Robots Disrupted . | . . . . Combat Hostiles . | . . . . Robots Corrupted . | . . . . Combat Hostiles . | . . . . Parts Fried . | . . . . Impact Corruptions . | . . . . Robots Melted 1 | . . . 1 Combat Hostiles 1 | . . . 1 Parts Melted 4 | . . . 4 Heat Transferred 2331 | . 222 666 1443 Parts Sabotaged . | . . . . Parts Stolen . | . . . . Parts Stripped . | . . . . Power Chain Reactions . | . . . . Alert | -11 -10 -10 -10 ------- Run | Yrd Mat Min Sub Maximum Alert Level . | . . . . Low Security (%) 100 | 100 100 100 . Level 1 . | . . . . Level 2 . | . . . . Level 3 . | . . . . Level 4 . | . . . . Level 5 . | . . . . High Security . | . . . . Max Security . | . . . . Peak Influence 154 | 10 154 134 . Initial 44 | . . 44 . Average 29 | 1 37 18 . Influence Increases 664 | 10 427 207 20 Destroy 0b10 Robot/C 360 | . 200 140 20 Destroy 0b10 Robot/NC 35 | 10 20 5 . Destroy Leader 76 | . 46 30 . Allied During Kill 4 | . . 4 . Successful Hack 110 | . 97 13 . Select Force Hacks 60 | . 60 . . Destroy Structure 4 | . 4 . . Lose Combat Pursuer 15 | . . 15 . Influence Decreases 664 | 10 312 322 20 Entered New Map 71 | . . 71 . Time Decay 553 | 10 302 221 20 Lost Part 20 | . 10 10 . Lost Ally 20 | . . 20 . Squads Dispatched 5 | . 4 1 . Investigation 5 | . 4 1 . Extermination . | . . . . Reinforcement . | . . . . Assault . | . . . . Garrison . | . . . . Intercept . | . . . . Searches Triggered . | . . . . Construction Impeded . | . . . . Haulers Reinforced . | . . . . Active Scanning Responses . | . . . . Cargo Convoy Interrupts . | . . . . Stealth | -11 -10 -10 -10 --------- Run | Yrd Mat Min Sub Distress Signals 2 | . 2 . . Communications Jammed . | . . . . Distress Signals . | . . . . Times Spotted 35 | . 18 9 8 Peak Tracking Total 4 | . 4 3 2 Tactical Retreats 3 | . 2 1 . Traps | -11 -10 -10 -10 ------- Run | Yrd Mat Min Sub Traps Triggered 5 | . 4 . 1 Indirectly . | . . . . Trap Hack Attempts . | . . . . Triggered . | . . . . Disarmed . | . . . . Reprogrammed . | . . . . Reused . | . . . . Traps Extracted . | . . . . Installed . | . . . . Triggered . | . . . . Machines | -11 -10 -10 -10 ---------- Run | Yrd Mat Min Sub Machines Disabled 2 | . 1 . 1 Max in Single Turn 1 | . 1 . 1 Machines Repaired . | . . . . Machines Dismantled . | . . . . Machines Sabotaged . | . . . . Overloaded Fab Kills . | . . . . Hacking | -11 -10 -10 -10 --------- Run | Yrd Mat Min Sub Machines Accessed 15 | . 11 2 2 Terminals 9 | . 8 1 . Fabricators . | . . . . Repair Stations 1 | . 1 . . Recycling Units 2 | . 2 . . Scanalyzers . | . . . . Garrison Access . | . . . . Total Hacks 69 | . 55 8 6 Successful 46 | . 36 4 6 Failed 23 | . 19 4 . Catastrophic 2 | . 1 1 . Database Lockouts . | . . . . Manual 45 | . 37 8 . Terminals 42 | . 35 7 . Fabricators . | . . . . Repair Stations 10 | . 10 . . Recycling Units 10 | . 10 . . Scanalyzers . | . . . . Garrison Access . | . . . . Terminal Hacks 20 | . 10 4 6 Record 5 | . . . 5 Part Schematic 1 | . . 1 . Robot Schematic 1 | . . 1 . Robot Analysis 8 | . 7 1 . Prototype ID Bank 2 | . 2 . . Open Door 1 | . . 1 . Locate Traps 1 | . 1 . . Proto ID Catalog 1 | . . . 1 Fabricator Hacks . | . . . . Repair Station Hacks 10 | . 10 . . Scan Component 5 | . 5 . . Repair 5 | . 5 . . Recycling Unit Hacks 2 | . 2 . . Retrieve Components 2 | . 2 . . Scanalyzer . | . . . . Garrison Access Hacks . | . . . . Unauthorized Hacks 14 | . 14 . . Terminals 8 | . 8 . . Track 1 | . 1 . . Botnet 1 | . 1 . . Operators 1 | . 1 . . Skim 5 | . 5 . . Fabricators . | . . . . Repair Stations . | . . . . Recycling Units 6 | . 6 . . Reject 2 | . 2 . . Recyclers 1 | . 1 . . Mask 1 | . 1 . . Tunnel 2 | . 2 . . Scanalyzers . | . . . . Garrison Access . | . . . . Data Cores Recovered . | . . . . Used . | . . . . Hacking Detections 10 | . 9 1 . Full Trace Events 2 | . 2 . . Feedback Events . | . . . . Feedback Blocked . | . . . . Robot Schematics Acquired 1 | . . 1 . Robots Built . | . . . . Authchips . | . . . . Time . | . . . . Total Robot Build Rating . | . . . . Part Schematics Acquired 1 | . . 1 . Parts Built . | . . . . Authchips . | . . . . Time . | . . . . Total Part Build Rating . | . . . . Part Studies Acquired . | . . . . Parts Repaired 5 | . 5 . . Time 136 | . 136 . . Parts Recycled . | . . . . Recycled Matter . | . . . . Retrieved Matter . | . . . . Retrieved Components 15 | . 15 . . Parts Scanalyzed . | . . . . Part Schematics Acquired . | . . . . Parts Damaged . | . . . . Bothacking | -11 -10 -10 -10 ------------ Run | Yrd Mat Min Sub Used RIF Installer . | . . . . Robots Hacked . | . . . . Non-combat . | . . . . Combat . | . . . . Robot Hacks Applied . | . . . . Relay Couplers Released . | . . . . Fabnet Peak Effective % . | . . . . Robots Rewired . | . . . . Allies Hacked . | . . . . Hacks Repelled . | . . . . Allies | -11 -10 -10 -10 -------- Run | Yrd Mat Min Sub Total Allies 3 | . . 3 . Largest Group 3 | . . 3 . Highest-Rated Group 40 | . . 40 . Highest-Rated Ally 16 | . . 16 . Total Orders 4 | . . 4 . STAY 2 | . . 2 . FOLLOW 2 | . . 2 . Ally Attacks 15 | . . 15 . Total Damage 130 | . . 130 . Kills 2 | . . 2 . Allies Corrupted . | . . . . Allies Melted . | . . . . Intel | -11 -10 -10 -10 ------- Run | Yrd Mat Min Sub Active Infowar (turns) 3316 | 33 1648 . 1635 Terrain 3316 | 33 1648 . 1635 Robot Analysis Total 7 | . 6 1 . Derelict Logs Recovered 3 | . . 1 2 Drone Launches . | . . . . Drone Recoveries . | . . . . Exploration | -11 -10 -10 -10 ------------- Run | Yrd Mat Min Sub Turns Passed 5286 | 90 2002 1354 1840 Spaces Moved 2956 | 54 940 873 1089 Core 16 | 16 . . . Treads 49 | . 48 1 . Legs 390 | 38 352 . . Wheels 2501 | . 540 872 1089 Hover . | . . . . Flight . | . . . . Fastest Speed 50 | 50 110 110 110 Average Speed 126 | 114 141 124 114 Slowest Speed 260 | 190 260 240 125 Overloaded Moves . | . . . . Propulsion Burnouts . | . . . . Robots Hopped . | . . . . Potential Cave-ins . | . . . . Cave-ins Triggered . | . . . . Exploration Rate (%) 66 | 4 98 100 63 Regions Visited 3 Branch Regions 2 Pre-discovered Areas 6 | . 4 . 2 Known Exits Taken 1 | . . 1 . Unknown Exits Taken 2 | 1 1 . . Scrap Searched 13 | . . 1 12 Spaces Dug 4 | . 4 . . Terrain Destroyed 60 | . 4 . 56 Melee . | . . . . Projectile 4 | . 4 . . AOE 56 | . . . 56 Terrain Rammed . | . . . . Walls Destroyed . | . . . . Machines Disabled . | . . . . Actions | -11 -10 -10 -10 --------- Run | Yrd Mat Min Sub Total 4277 | 71 1536 1090 1580 Wait 1108 | . 508 178 422 Move 2953 | 53 939 872 1089 Hop . | . . . . Pick Up 35 | 7 18 7 3 Fast Attach 14 | 7 6 . 1 Attach 9 | . 3 5 1 Detach . | . . . . Swap 23 | . 15 . 8 Drop 18 | . 11 3 4 Fire 116 | 4 35 25 52 Melee . | . . . . Ram . | . . . . Kick . | . . . . Crush 1 | . 1 . . Escape Stasis . | . . . . Rewire . | . . . . Trap . | . . . . Miscellaneous . | . . . . Route ------- -11/Scrapyard -10/Materials (discovered 6 exits: *Mat x3 / *Min x2 / Sub) -10/Mines (discovered 3 exits: *Mat x2 / *Sub) -10/Subcaves (discovered 2 exits: [*Mat] / Rec) History --------- Turn | Location | Event 20 | -11/Scrapyard | Discovered new exit (range 15) 91 | -11/Scrapyard | Entered Materials 205 | -10/Materials | Discovered new exit (range 11) 313 | -10/Materials | Build established: Mutant 691 | -10/Materials | Derelicts attacked the area 813 | -10/Materials | Discovered new exit (range 6) 874 | -10/Materials | Discovered new exit (range 11) 1164 | -10/Materials | Discovered new exit (range 4) 1384 | -10/Materials | Learned 4 Subcaves zone layouts 1438 | -10/Materials | Identified exit to Materials 1438 | -10/Materials | Identified exit to Subcaves 1482 | -10/Materials | Learned location of Mines (-9) 1516 | -10/Materials | Loaded intel: 6 trap records 1539 | -10/Materials | Learned Storage security intel 1551 | -10/Materials | Learned location of Storage (-7) 1575 | -10/Materials | Learned location of 2 exits from Materials 1611 | -10/Materials | Learned 2 Storage zone layouts 1854 | -10/Materials | Repaired Lgt. Cannon 1881 | -10/Materials | Repaired Lgt. Treads 1911 | -10/Materials | Repaired Lgt. Treads 1944 | -10/Materials | Repaired Particle Gun 1971 | -10/Materials | Repaired Mining Laser 2093 | -10/Materials | Entered Mines 2159 | -10/Mines | Discovered exit to Subcaves (range 13) 2236 | -10/Mines | Discovered exit to Materials (range 5) 2288 | -10/Mines | Assisted by bots powering up and referring to "LRC-V3" 2312 | -10/Mines | Assembled infested the area 2520 | -10/Mines | Lost 3 allies 2532 | -10/Mines | Lost 3 parts (2n1w) 2691 | -10/Mines | Met a Derelict shopkeep closing up shop 2726 | -10/Mines | Received a Rocket Launcher from a helpful Derelict 2733 | -10/Mines | Discovered exit to Materials (range 9) 3100 | -10/Mines | Learned Materials terminal intel 3447 | -10/Mines | Entered Subcaves 3503 | -10/Subcaves | Shifting Twisted Machinery released Piercing Trap 3509 | -10/Subcaves | Shifting Twisted Machinery released Battle Cannon 3748 | -10/Subcaves | Discovered new exit (range 13) 3752 | -10/Subcaves | Learned Materials emergency access door positions 3781 | -10/Subcaves | Visited Clippyterm 3784 | -10/Subcaves | Identified exit to Recycling 3784 | -10/Subcaves | Learned Research machine intel 3997 | -10/Subcaves | Learned location of Zion (-6) 4559 | -10/Subcaves | Visited 4L-MR0's lab 4574 | -10/Subcaves | Found Powered Cannon 5014 | -10/Subcaves | A swath of the cavern ceiling suddenly collapsed 5054 | -10/Subcaves | Met a Zionite searching for "candidates" 5125 | -10/Subcaves | Core integrity fell below 50% 5127 | -10/Subcaves | Shifting Twisted Machinery released Sub. Power Source 5134 | -10/Subcaves | Shifting Twisted Machinery released Ripper 5180 | -10/Subcaves | Core integrity fell below 20% 5287 | -10/Subcaves | Destroyed by 9U-OS8(R) with Subdweller Laser Last Messages --------------- 05100_ BU-4G6(u) builds Twisted Machinery. 05101_ BU-4G6(u) cries out in pain. 05101_ BU-4G6(u) destroyed. 05112_ Acquired 11 matter. Sub. Power Source falls loose from the Twisted Machinery. 05127_ The unstable cave ceiling collapses. Ripper falls loose from the Twisted Machinery. 05138_ Acquired Sub. Power Source. 05168_ L9-O2C(R) destroyed. 05177_ 0M-X4Y(R) affixes Scrap Shield Fragment to Scrap Shield. 05195_ Imp. Terrain Scanner destroyed. 05210_ Sub. Power Source melted. 05210_ Sub. Optics melted. 05210_ 0M-X4Y(R) destroyed. 05215_ Acquired 58 matter. 05218_ Acquired 32 matter. 05283_ Sub. Power Source destroyed. 05285_ 86-MUS(R) destroyed. Map ----- +----------------------------------------------------+ | ??? ##??????????????????????????????????????? | | ??? #??????????????????????????????????????? | | ??? #??????????????????????????????????????? | | ??? ##??????????????????????????????????????? | | ??? #???????????????????????????????????????? | | ??? ##???????????????????????????????????????? | | ??? #????????????????????????????????????????? | | ??? ##???????????????????????????????????????? | | ??? ###?????????????????????????????????????? | | ??? ##????????????????????????????????????? | | ??? #????????????????????????????????????? | | ???#### #????????????????????????????????????? | | ?????????????????????????????????????????????????? | | ?????????????????????????????????????????????????? | | ?????????????????????????????????????????????????? | | ?????????????????????????????????????????????????? | | ?????????????????????????????????????????????????? | | ??????????????????####???????????????????????????? | | ????????????????###" #??????????????????????????? | | ????????????????? #?????????????????????????? | | ?????????????????? R & #????????????????????????? | | ????????????????????]%= ##??????????????????????? | | ?????????????????????* ##?????????????????????? | | ?????????????????????? #?????????????????????? | | ???????????????????????# #?????????????????????? | | ???????????????????????##@#????????????###???????? | | ???????????????????????# #??????????? "???????? | | ???????????????????????## ##????????? ????????? | | ???????????????????????## #???????? ??????????? | | ???????????????????????# " #???????# ???????????? | | ???????????????????????## #??????# ????????????? | | ???????????????????????# #?????# ?????????????? | | ???????????????????????# ###### ??????????????? | | ???????????#???????????## # ## #???????????????? | | ???#???????#????##??????# ##??????????????? | | #???????????????# ##???# ## # #??????????????? | | ??????#???????#?# ##?######## ##########?????? | | ?????#####?????## ##### # # ## ##??? | | ????## ##???## ## | | ???## #???"" """" | | #??#"" ##??"" "" #### # # | | ##?#" ""??#####"""%" #?###### ## # | | ##?# "#??#"" #" ### ### #??? ## ? | | #?# #??#"""""[ #""" ### ## ##???????? | | "### ####"#"#" =#### ### ### #???????? | | ##"" #""## =& #?## #?# #?## #???????? | | """""" ## " ###??## ### #### ##??????? | | ="" " " "##???## # ### ## #??????? | | " # "" ##?????# #??????? | | " # /" #????#?## #??????? | +----------------------------------------------------+ Best States ------------- Heat Dissipation 25 Energy Generation 15 Energy Capacity 250 Matter Stores 300 Matter Capacity 300 Sight Range 16 Terrain Scan Range 16 Terrain Scan Density 10 Core Shielding 20 Evasion (%) 55 Recoil Reduction 2 Item Schematics ----------------- Hcp. Storage Unit | -10/Mines | Hacked Robot Schematics ------------------ O-16 Technician | -10/Mines | Hacked Fabricated ------------ Nothing Repaired ---------- Lgt. Cannon | 81% | -10/Materials Lgt. Treads | 84% | -10/Materials Lgt. Treads | 85% | -10/Materials Particle Gun | 88% | -10/Materials Mining Laser | 63% | -10/Materials Studied --------- None Alien Tech Used ----------------- None Achievements -------------- None Challenges ------------ None Game ------ Seed PortableSiegeArray Manual? 0 Play Time 00:30:51 Cumulative 853.5 hours Start 2025.12.11 @ 07:12:07 End 2025.12.11 @ 07:44:24 Sessions 1 Manual Loads 0 Difficulty Rogue Special Mode None Game No. 549 Rogue 549 Adventurer 0 Explorer 0 Win Type - Total 1 Types 1/0/0/0/0/0/0/0/0/0 Lore% 78 Gallery% 72 Achievement% 52 Wizard Run 0 Options --------- Layout 1 ASCII 0 Keyboard 0 Movement Mouse Keybinds 0 Fullscreen 1 Font 20/SmallcapsGlow Map View 54x42 Zoom Use 0% Tactical HUD 1 Map Filters NONE Filters NONE Steam 1 RUN: b8c387d8-d695-4085-a70f-dcad69e92ba0